[Event "Catalan Youth-ch 2020"]
[Site "Salou"]
[Date "2020.09.08"]
[Round "6.8"]
[White "Jordana Nagera, Pol"]
[Black "Sanchez Vacova, Alejandro"]
[Result "1/2-1/2"]
[ECO "B77"]
[WhiteElo "1229"]
[BlackElo "1149"]
[Annotator "NA RC"]
[PlyCount "54"]
[EventDate "2020.09.07"]
[EventType "swiss"]
[EventCountry "ESP"]
[SourceTitle "playchess.com"]
[Source "ChessBase"]
[SourceQuality "1"]
[TimeControl "5400+30"]

1. e4 {[%emt 0:00:35]} c5 {[%emt 0:00:36]} 2. Nf3 {[%emt 0:02:10]} g6 {[%emt 0:01:30]} 3. d4 {[%emt 0:02:07]} cxd4 {[%emt 0:03:24]} 4. Nxd4 {[%emt 0:00:55]} Bg7 {[%emt 0:01:31]} 5. Be3 {[%emt 0:03:31]} Nc6 {[%emt 0:03:39]} 6. Nc3 {[%emt 0:01:38]} Nf6 {[%emt 0:02:18]} 7. Bc4 {[%emt 0:06:40]} d6 {[%emt 0:01:49]} 8. f3 {[%emt 0:00:34]} Bd7 {[%emt 0:04:28]} 9. Qd2 {[%emt 0:01:35]} a6 {[%emt 0:03:23]} 10. Bb3 {[%emt 0:01:11]} Na5 {[%emt 0:08:24]} 11. O-O {[%emt 0:10:35]} Nxb3 {[%emt 0:00:00]} 12. axb3 {[%emt 0:03:09]} O-O {[%emt 0:05:51]} 13. Rad1 {[%emt 0:04:57]} Rc8 {[%emt 0:07:33]} 14. Ra1 {[%emt 0:11:46]} Re8 {[%emt 0:09:16]} 15. Nb1 {[%emt 0:06:46]} Qc7 {[%emt 0:07:39]} 16. c4 {[%emt 0:08:47]} Bc6 {[%emt 0:00:00]} 17. Nc3 {[%emt 0:00:00]} Nd7 {[%emt 0:00:00]} 18. Rfc1 {[%emt 0:04:03]} Nc5 {[%emt 0:00:00]} 19. Nd5 {[%emt 0:01:09]} Bxd5 {[%emt 0:00:00]} 20. cxd5 {[%emt 0:03:52]} Qd7 {[%emt 0:00:00]} 21. Qd1 {[%emt 0:02:14]} e6 {[%emt 0:00:00]} 22. dxe6 {[%emt 0:02:33]} Nxe6 {[%emt 0:00:00]} 23. Nxe6 {[%emt 0:00:34]} Qxe6 {[%emt 0:00:00]} 24. Rxc8 {[%emt 0:01:05]} Rxc8 {[%emt 0:00:00]} 25. Rc1 {[%emt 0:00:56]} Rxc1 {[%emt 0:00:00]} 26. Qxc1 {[%emt 0:00:08]} Qd7 {[%emt 0:00:00]} 27. Qd2 {[%emt 0:00:41]} Qc7 {[%emt 0:00:00]} 1/2-1/2

[Event "Catalan Youth-ch 2020"]
[Site "Salou"]
[Date "2020.09.09"]
[Round "7.6"]
[White "Iborra Polo, Eric"]
[Black "Muntal Corrales, Arnau"]
[Result "1-0"]
[ECO "B40"]
[WhiteElo "1640"]
[BlackElo "1812"]
[Annotator "NA RC"]
[PlyCount "77"]
[EventDate "2020.09.07"]
[EventType "swiss"]
[EventCountry "ESP"]
[SourceTitle "playchess.com"]
[Source "ChessBase"]
[SourceQuality "1"]
[TimeControl "5400+30"]

{[%evp 8,76,51,46,54,18,55,49,85,79,101,54,181,95,95,89,108,89,85,77,86,93,218,154,215,190,323,388,336,238,345,239,189,0,217,200,286,264,272,282,281,307,324,270,301,249,240,259,329,353,380,348,356,357,411,479,443,508,468,32767,32767,32767,32767,32767,32767,32767,32767,962,1581,1809,2312]} 1. e4 {[%emt 0:00:00]} c5 {[%emt 0:00:00]} 2. Nf3 {[%emt 0:00:08]} e6 {[%emt 0:00:00]} 3. g3 {[%emt 0:00:51]} a6 {[%emt 0:01:23]} 4. Bg2 {[%emt 0:01:34]} b5 {[%emt 0:01:01]} 5. O-O {[%emt 0:03:16]} Bb7 {[%emt 0:01:28]} 6. Qe2 {[%emt 0:01:03] B40: Sicilian: 2...e6, Unusual lines.} d5 {[%emt 0:03:46] Recently 6...Nf6 got a lot of attention.} 7. exd5 {[%emt 0:07:24]} Bxd5 {[%emt 0:02:02]} 8. Nc3 {[%emt 0:01:15]} Bb7 {[%emt 0:03:22] [#]} 9. d4 $146 {[%emt 0:03:48]} ({Predecessor:} 9. a4 bxa4 10. Ne4 Nd7 11. d3 Ngf6 12. Bg5 Be7 13. Bxf6 gxf6 14. Nfd2 O-O 15. Rxa4 {1-0 (50) Finkel,A (2476)-Kantsler,B (2433) Israel 2011}) 9... Be7 {[%emt 0:14:49]} (9... cxd4 $16 10. Rd1 Nd7) 10. Ne5 {[%emt 0:09:44]} (10. dxc5 $18 Bxc5 11. Ne4) 10... Bxg2 {[%emt 0:04:35]} 11. Kxg2 {[%emt 0:00:16]} Nf6 {[%emt 0:06:16]} 12. Qf3 {[%emt 0:01:58]} Ra7 {[%emt 0:01:31]} 13. dxc5 {[%emt 0:02:56]} O-O {[%emt 0:03:23]} 14. Be3 {[%emt 0:03:09]} Rc7 {[%emt 0:05:42]} (14... Qc7 $16) 15. Rfd1 {[%emt 0:01:56]} Qc8 {[%emt 0:01:45]} (15... Nfd7 $16) 16. b4 {[%emt 0:01:25]} Nc6 {[%emt 0:02:43]} (16... Nfd7 $142) 17. Nxc6 {[%emt 0:01:26]} Rxc6 {[%emt 0:00:13]} 18. a3 {[%emt 0:01:56]} h6 {[%emt 0:07:48]} (18... Nd7 {keeps fighting.} 19. Bd4 Rd8) 19. Bf4 {[%emt 0:04:19]} Re8 {[%emt 0:01:51]} 20. Rd3 $2 {[%emt 0:05:00]} (20. Re1 $18) 20... Qa8 $2 {[%emt 0:07:39]} (20... e5 $11 {and Black is okay.}) 21. Rad1 {[%emt 0:06:40]} Rec8 {[%emt 0:01:32]} (21... g5 {keeps fighting.}) 22. Bd6 {[%emt 0:02:28]} Bxd6 {[%emt 0:05:42]} 23. Rxd6 {[%emt 0:00:25]} Kf8 {[%emt 0:02:26]} 24. Rxc6 {[%emt 0:03:27]} Qxc6 {[%emt 0:01:26]} 25. Rd6 {[%emt 0:01:28]} Qa8 {[%emt 0:03:32]} 26. Qxa8 {[%emt 0:01:03]} Rxa8 {[%emt 0:00:06]} 27. Rb6 {[%emt 0:04:26]} Ke8 {[%emt 0:04:29]} 28. Rb7 {[%emt 0:01:48]} Rc8 {[%emt 0:02:42]} 29. Ra7 {[%emt 0:01:28]} Rc6 {[%emt 0:01:02]} 30. Kf3 {[%emt 0:01:05]} g5 {[%emt 0:02:03]} 31. Ne4 {[%emt 0:01:03]} g4+ {[%emt 0:03:02]} 32. Ke3 {[%emt 0:00:25]} Nd5+ {[%emt 0:00:23]} 33. Kd4 {[%emt 0:00:33]} f5 {[%emt 0:01:20]} 34. Nd6+ {[%emt 0:00:44]} Kf8 {[%emt 0:01:03]} 35. Ke5 {[%emt 0:00:42]} Nc7 {[%emt 0:01:37]} 36. Kf6 {[%emt 0:01:08]} h5 {[%emt 0:01:04]} 37. c3 {[%emt 0:00:29]} Nd5+ $18 {[%emt 0:01:54]} 38. Kxe6 {[%emt 0:00:21]} Rc7 {[%emt 0:00:33]} 39. Ra8+ {[%emt 0:00:51]} 1-0

[Event "Catalan Youth-ch 2020"]
[Site "Salou"]
[Date "2020.09.09"]
[Round "7.7"]
[White "Sanchez Vacova, Alejandro"]
[Black "Mompel Ferruz, Xavier"]
[Result "1-0"]
[ECO "B50"]
[WhiteElo "1149"]
[BlackElo "1505"]
[Annotator "NA RC"]
[PlyCount "133"]
[EventDate "2020.09.07"]
[EventType "swiss"]
[EventCountry "ESP"]
[SourceTitle "playchess.com"]
[Source "ChessBase"]
[SourceQuality "1"]
[TimeControl "5400+30"]

1. e4 {[%emt 0:00:00]} c5 {[%emt 0:00:00]} 2. Nf3 {[%emt 0:00:00]} d6 {[%emt 0:00:14]} 3. c4 {[%emt 0:00:41]} Nf6 {[%emt 0:06:12]} 4. Nc3 {[%emt 0:01:26]} Bg4 {[%emt 0:07:33]} 5. Be2 {[%emt 0:04:56]} Bxf3 {[%emt 0:00:00]} 6. Bxf3 {[%emt 0:00:29]} Nc6 {[%emt 0:01:31]} 7. d3 {[%emt 0:03:20]} h6 {[%emt 0:05:17]} 8. Be3 {[%emt 0:02:19]} e5 {[%emt 0:08:08]} 9. a3 {[%emt 0:08:27]} Be7 {[%emt 0:03:03]} 10. Nd5 {[%emt 0:03:30]} O-O {[%emt 0:01:46]} 11. Nxf6+ {[%emt 0:00:05]} Bxf6 {[%emt 0:00:42]} 12. O-O {[%emt 0:02:51]} Nd4 {[%emt 0:01:06]} 13. Bxd4 {[%emt 0:02:12]} cxd4 {[%emt 0:01:12]} 14. b4 {[%emt 0:01:05]} Bg5 {[%emt 0:04:00]} 15. g3 {[%emt 0:02:12]} f5 {[%emt 0:02:15]} 16. exf5 {[%emt 0:00:11]} Rxf5 {[%emt 0:00:13]} 17. Bd5+ {[%emt 0:00:28]} Kh8 {[%emt 0:01:23]} 18. Qg4 {[%emt 0:05:10]} g6 {[%emt 0:01:28]} 19. Be4 {[%emt 0:01:25]} h5 {[%emt 0:04:01]} 20. Qe2 {[%emt 0:03:30]} Rf6 21. Bxb7 {[%emt 0:01:02]} Rb8 {[%emt 0:03:13]} 22. Be4 Qe7 {[%emt 0:02:43]} 23. Bg2 {[%emt 0:08:46]} Qf8 {[%emt 0:01:29]} 24. b5 {[%emt 0:09:18]} h4 {[%emt 0:02:32]} 25. a4 {[%emt 0:01:32]} hxg3 {[%emt 0:01:01]} 26. fxg3 {[%emt 0:03:31]} Be3+ {[%emt 0:15:58]} 27. Kh1 {[%emt 0:01:06]} Kg7 {[%emt 0:00:58]} 28. Rxf6 {[%emt 0:00:19]} Qxf6 {[%emt 0:00:07]} 29. Rf1 {[%emt 0:04:53]} Qe7 {[%emt 0:04:40]} 30. Bd5 {[%emt 0:00:00]} Rf8 {[%emt 0:00:10]} 31. Rxf8 {[%emt 0:00:00]} Qxf8 32. Qf3 {[%emt 0:02:09]} Qxf3+ {[%emt 0:03:03]} 33. Bxf3 {[%emt 0:00:29]} Bd2 {[%emt 0:00:15]} 34. Kg2 {[%emt 0:00:37]} g5 {[%emt 0:00:25]} 35. g4 {[%emt 0:00:12]} Kf6 {[%emt 0:00:13]} 36. Bd5 {[%emt 0:00:46]} Ke7 {[%emt 0:00:51]} 37. Kf3 {[%emt 0:01:03]} Kf6 {[%emt 0:01:39]} 38. Ke4 {[%emt 0:01:26]} Bb4 {[%emt 0:00:13]} 39. Bg8 {[%emt 0:04:14]} Kg7 {[%emt 0:04:52]} 40. Be6 {[%emt 0:02:36]} Kf6 {[%emt 0:02:34]} 41. Bf5 {[%emt 0:00:00]} Bc5 42. Kd5 {[%emt 0:00:40]} Ke7 {[%emt 0:01:18]} 43. Kc6 {[%emt 0:00:34]} Kd8 {[%emt 0:00:17]} 44. a5 {[%emt 0:04:34]} e4 {[%emt 0:04:50]} 45. Bxe4 {[%emt 0:01:23]} Kc8 {[%emt 0:01:11]} 46. b6 {[%emt 0:03:16]} axb6 {[%emt 0:00:30]} 47. axb6 {[%emt 0:00:00]} Ba3 48. h4 {[%emt 0:02:01]} Bc1 {[%emt 0:03:55]} 49. h5 {[%emt 0:00:00]} Bf4 {[%emt 0:00:35]} 50. h6 {[%emt 0:00:23]} Be5 {[%emt 0:00:00]} 51. h7 {[%emt 0:00:00]} Kb8 {[%emt 0:00:00]} 52. h8=Q+ Bxh8 53. Kxd6 {[%emt 0:00:52]} Bg7 {[%emt 0:00:54]} 54. b7 {[%emt 0:02:14]} Bf6 {[%emt 0:02:40]} 55. c5 {[%emt 0:00:35]} Bd8 {[%emt 0:00:58]} 56. Ke5 {[%emt 0:00:32]} Be7 {[%emt 0:00:33]} 57. Kxd4 {[%emt 0:00:36]} Kc7 {[%emt 0:00:25]} 58. Kc4 {[%emt 0:00:43]} Bf8 {[%emt 0:00:50]} 59. d4 {[%emt 0:00:52]} Bg7 {[%emt 0:00:56]} 60. c6 {[%emt 0:00:18]} Bf6 {[%emt 0:00:29]} 61. d5 {[%emt 0:00:27]} Bg7 {[%emt 0:00:18]} 62. b8=Q+ Kxb8 63. d6 {[%emt 0:00:00]} Kc8 64. c7 {[%emt 0:00:18]} Be5 {[%emt 0:00:57]} 65. Bf5+ {[%emt 0:00:00]} Kb7 {[%emt 0:00:41]} 66. c8=Q+ Ka7 {[%emt 0:01:04]} 67. Qc7+ {[%emt 0:00:55]} 1-0

[Event "Catalan Youth-ch 2020"]
[Site "Salou"]
[Date "2020.09.09"]
[Round "7.8"]
[White "Jove Albaiges, Guillem"]
[Black "Jordana Nagera, Pol"]
[Result "1/2-1/2"]
[ECO "E01"]
[WhiteElo "1491"]
[BlackElo "1229"]
[Annotator "NA RC"]
[PlyCount "92"]
[EventDate "2020.09.07"]
[EventType "swiss"]
[EventCountry "ESP"]
[SourceTitle "playchess.com"]
[Source "ChessBase"]
[SourceQuality "1"]
[TimeControl "5400+30"]

1. d4 {[%emt 0:00:00]} Nf6 {[%emt 0:00:00]} 2. c4 {[%emt 0:00:56]} e6 {[%emt 0:00:40]} 3. g3 {[%emt 0:01:38]} d5 {[%emt 0:01:36]} 4. Nf3 {[%emt 0:04:06]} c6 {[%emt 0:03:21]} 5. Bg2 {[%emt 0:01:15]} Bd6 {[%emt 0:03:37]} 6. Qc2 {[%emt 0:01:45]} O-O {[%emt 0:03:35]} 7. O-O {[%emt 0:02:35]} Nbd7 {[%emt 0:04:12]} 8. c5 {[%emt 0:02:29]} Bc7 {[%emt 0:05:09]} 9. Bf4 {[%emt 0:05:55]} Ne4 {[%emt 0:06:06]} 10. Nbd2 {[%emt 0:04:09]} f5 {[%emt 0:03:45]} 11. Bxc7 {[%emt 0:04:39]} Qxc7 12. Nxe4 {[%emt 0:00:32]} fxe4 {[%emt 0:00:52]} 13. Ng5 {[%emt 0:01:18]} Nf6 {[%emt 0:03:01]} 14. f4 {[%emt 0:06:06]} h6 {[%emt 0:00:00]} 15. Nh3 {[%emt 0:04:00]} b6 {[%emt 0:02:18]} 16. b4 {[%emt 0:00:00]} Ng4 {[%emt 0:04:47]} 17. Qc3 {[%emt 0:00:00]} Ba6 {[%emt 0:00:36]} 18. Rfe1 {[%emt 0:06:46]} Bc4 {[%emt 0:04:39]} 19. Bxe4 {[%emt 0:04:28]} Nf6 {[%emt 0:06:59]} 20. Bg2 {[%emt 0:00:00]} b5 {[%emt 0:03:17]} 21. Nf2 {[%emt 0:02:39]} a5 {[%emt 0:10:11]} 22. a3 {[%emt 0:07:38]} a4 {[%emt 0:00:05]} 23. e4 {[%emt 0:03:20]} Rae8 {[%emt 0:02:08]} 24. e5 {[%emt 0:00:32]} Nd7 {[%emt 0:01:46]} 25. Nd3 {[%emt 0:02:26]} g6 {[%emt 0:03:41]} 26. Nb2 {[%emt 0:01:35]} Bb3 {[%emt 0:03:52]} 27. Qf3 {[%emt 0:03:23]} Kg7 {[%emt 0:02:31]} 28. Qg4 {[%emt 0:04:22]} Bc2 {[%emt 0:01:14]} 29. Re3 {[%emt 0:00:46]} Bf5 {[%emt 0:00:36]} 30. Qe2 {[%emt 0:05:14]} g5 {[%emt 0:01:56]} 31. fxg5 {[%emt 0:00:00]} hxg5 {[%emt 0:02:17]} 32. Qh5 {[%emt 0:00:00]} Qd8 {[%emt 0:00:40]} 33. Rf1 {[%emt 0:03:21]} g4 {[%emt 0:00:58]} 34. Qh4 {[%emt 0:02:39]} Qxh4 {[%emt 0:00:42]} 35. gxh4 {[%emt 0:00:16]} Rh8 {[%emt 0:00:59]} 36. Rg3 {[%emt 0:01:11]} Rxh4 {[%emt 0:00:20]} 37. Rf4 {[%emt 0:00:31]} Nf8 {[%emt 0:01:53]} 38. Nd1 {[%emt 0:01:21]} Ng6 {[%emt 0:00:17]} 39. Rf2 {[%emt 0:01:30]} Reh8 {[%emt 0:01:18]} 40. Ne3 {[%emt 0:01:55]} R8h5 {[%emt 0:01:28]} 41. Bf1 {[%emt 0:04:12]} Kh6 {[%emt 0:02:17]} 42. Be2 {[%emt 0:00:00]} Kg5 {[%emt 0:00:36]} 43. Rfg2 {[%emt 0:00:25]} Nf4 {[%emt 0:01:20]} 44. Bxg4 {[%emt 0:02:04]} Nxg2 {[%emt 0:00:31]} 45. Bxh5+ {[%emt 0:00:17]} Kxh5 {[%emt 0:00:10]} 46. Kxg2 {[%emt 0:01:01]} Rxd4 {[%emt 0:02:46]} 1/2-1/2

[Event "Catalan Youth-ch 2020"]
[Site "Salou"]
[Date "2020.09.10"]
[Round "8.3"]
[White "Rodriguez Gonzalez, Gerard"]
[Black "Romeu Viladot, Emili"]
[Result "1-0"]
[ECO "B26"]
[WhiteElo "1714"]
[BlackElo "1677"]
[Annotator "NA RC"]
[PlyCount "29"]
[EventDate "2020.09.07"]
[EventType "swiss"]
[EventCountry "ESP"]
[SourceTitle "playchess.com"]
[Source "ChessBase"]
[SourceQuality "1"]
[TimeControl "5400+30"]

1. e4 {[%emt 0:01:21]} c5 {[%emt 0:00:00]} 2. Nc3 {[%emt 0:00:28]} d6 {[%emt 0:00:00]} 3. g3 {[%emt 0:00:31]} g6 {[%emt 0:00:00]} 4. Bg2 {[%emt 0:00:27]} Bg7 {[%emt 0:00:00]} 5. d3 {[%emt 0:00:38]} Nc6 {[%emt 0:00:03]} 6. Be3 {[%emt 0:00:44]} e6 {[%emt 0:00:14]} 7. Qd2 {[%emt 0:01:13]} Rb8 {[%emt 0:00:07]} 8. Nge2 {[%emt 0:00:57]} Nd4 {[%emt 0:00:15]} 9. Nc1 {[%emt 0:00:49]} b5 {[%emt 0:04:15]} 10. O-O {[%emt 0:01:52]} b4 {[%emt 0:07:09]} 11. Nd1 {[%emt 0:00:39]} Ba6 {[%emt 0:03:51]} 12. c3 {[%emt 0:04:22]} bxc3 {[%emt 0:00:33]} 13. bxc3 {[%emt 0:00:09]} Nc6 {[%emt 0:01:07]} 14. f4 {[%emt 0:06:03]} Nge7 {[%emt 0:01:09]} 15. f5 {[%emt 0:00:52]} 1-0

[Event "Catalan Youth-ch 2020"]
[Site "Salou"]
[Date "2020.09.10"]
[Round "8.6"]
[White "Fernandez Climent, Albert"]
[Black "Lambert Pont, James"]
[Result "1-0"]
[ECO "B77"]
[WhiteElo "1673"]
[BlackElo "1574"]
[Annotator "NA RC"]
[PlyCount "35"]
[EventDate "2020.09.07"]
[EventType "swiss"]
[EventCountry "ESP"]
[SourceTitle "playchess.com"]
[Source "ChessBase"]
[SourceQuality "1"]
[TimeControl "5400+30"]

1. e4 {[%emt 0:00:19]} c5 {[%emt 0:00:00]} 2. Nf3 {[%emt 0:00:27]} Nc6 {[%emt 0:00:14]} 3. d4 {[%emt 0:00:53]} cxd4 {[%emt 0:00:38]} 4. Nxd4 {[%emt 0:00:10]} g6 {[%emt 0:00:53]} 5. Nc3 {[%emt 0:00:39]} Bg7 {[%emt 0:00:32]} 6. Be3 {[%emt 0:00:21]} d6 {[%emt 0:01:34]} 7. Qd2 {[%emt 0:01:10]} Nf6 {[%emt 0:01:09]} 8. f3 {[%emt 0:00:17]} O-O {[%emt 0:01:23]} 9. O-O-O {[%emt 0:00:20]} Re8 {[%emt 0:07:39]} 10. Bc4 {[%emt 0:06:27]} Bd7 {[%emt 0:06:40]} 11. h4 {[%emt 0:01:27]} h5 {[%emt 0:00:51]} 12. g4 {[%emt 0:01:59]} hxg4 {[%emt 0:02:12]} 13. h5 {[%emt 0:00:47]} gxh5 {[%emt 0:05:32]} 14. Bh6 {[%emt 0:04:07]} Qa5 {[%emt 0:04:56]} 15. Ndb5 {[%emt 0:07:34]} Ne5 {[%emt 0:01:40]} 16. Qg5 {[%emt 0:01:17]} Ng6 {[%emt 0:01:31]} 17. Qxg6 {[%emt 0:00:06]} Qa3 {[%emt 0:03:15]} 18. Qxg7# {[%emt 0:00:08]} 1-0

[Event "Catalan Youth-ch 2020"]
[Site "Salou"]
[Date "2020.09.10"]
[Round "8.7"]
[White "Jove Albaiges, Guillem"]
[Black "Sanchez Vacova, Alejandro"]
[Result "1-0"]
[ECO "B07"]
[WhiteElo "1491"]
[BlackElo "1149"]
[Annotator "NA RC"]
[PlyCount "62"]
[EventDate "2020.09.07"]
[EventType "swiss"]
[EventCountry "ESP"]
[SourceTitle "playchess.com"]
[Source "ChessBase"]
[SourceQuality "1"]
[TimeControl "5400+30"]

1. d4 {[%emt 0:00:00]} Nf6 {[%emt 0:00:00]} 2. Nc3 {[%emt 0:00:00]} g6 {[%emt 0:00:00]} 3. Bg5 {[%emt 0:00:32]} Bg7 {[%emt 0:01:17]} 4. e4 {[%emt 0:00:33]} d6 {[%emt 0:01:38]} 5. e5 {[%emt 0:02:07]} Nfd7 {[%emt 0:01:50]} 6. exd6 {[%emt 0:01:12]} cxd6 {[%emt 0:00:00]} 7. Qd2 {[%emt 0:02:04]} Nc6 {[%emt 0:01:07]} 8. Nf3 {[%emt 0:03:29]} O-O {[%emt 0:01:40]} 9. O-O-O {[%emt 0:04:25]} a6 {[%emt 0:03:26]} 10. Bh6 {[%emt 0:02:51]} Nf6 {[%emt 0:02:22]} 11. Bxg7 {[%emt 0:00:00]} Kxg7 {[%emt 0:04:56]} 12. d5 {[%emt 0:04:41]} Na7 {[%emt 0:06:59]} 13. h4 {[%emt 0:07:45]} h5 {[%emt 0:06:37]} 14. Ng5 {[%emt 0:05:26]} Bd7 {[%emt 0:10:37]} 15. Bd3 {[%emt 0:01:49]} Nb5 {[%emt 0:00:00]} 16. Nce4 {[%emt 0:02:12]} Nxe4 {[%emt 0:03:27]} 17. Nxe4 {[%emt 0:04:32]} Rc8 {[%emt 0:01:49]} 18. Kb1 {[%emt 0:03:07]} Bf5 {[%emt 0:00:43]} 19. Rdg1 {[%emt 0:06:12]} Qb6 {[%emt 0:03:50]} 20. Ka1 {[%emt 0:12:36]} Qd4 21. Qe2 {[%emt 0:07:33]} Rc7 {[%emt 0:03:25]} 22. f3 {[%emt 0:02:19]} Rfc8 {[%emt 0:03:32]} 23. g4 {[%emt 0:00:00]} Bxe4 {[%emt 0:00:00]} 24. fxe4 {[%emt 0:00:00]} hxg4 {[%emt 0:01:47]} 25. Rxg4 {[%emt 0:00:00]} Rh8 {[%emt 0:09:03]} 26. Rf1 {[%emt 0:04:26]} Rh5 {[%emt 0:00:00]} 27. Qf3 {[%emt 0:05:13]} f6 {[%emt 0:00:00]} 28. e5 {[%emt 0:02:23]} Qxe5 {[%emt 0:01:52]} 29. Rxg6+ {[%emt 0:00:29]} Kf8 {[%emt 0:03:29]} 30. Rfg1 {[%emt 0:02:17]} Rh8 {[%emt 0:04:34]} 31. Qg2 {[%emt 0:01:18]} Ke8 {[%emt 0:00:13]} 1-0

[Event "Catalan Youth-ch 2020"]
[Site "Salou"]
[Date "2020.09.10"]
[Round "8.8"]
[White "Prada Villagrasa, Pau Manel"]
[Black "Marin Ripoll, Marti"]
[Result "1-0"]
[ECO "B23"]
[WhiteElo "1573"]
[BlackElo "1313"]
[Annotator "NA RC"]
[PlyCount "79"]
[EventDate "2020.09.07"]
[EventType "swiss"]
[EventCountry "ESP"]
[SourceTitle "playchess.com"]
[Source "ChessBase"]
[SourceQuality "1"]
[TimeControl "5400+30"]

1. e4 {[%emt 0:00:05]} c5 {[%emt 0:00:00]} 2. Nc3 {[%emt 0:00:39]} Nc6 {[%emt 0:00:04]} 3. f4 {[%emt 0:00:26]} g6 {[%emt 0:00:08]} 4. Nf3 {[%emt 0:00:46]} Bg7 {[%emt 0:00:28]} 5. Bc4 {[%emt 0:00:38]} e6 {[%emt 0:00:30]} 6. d3 {[%emt 0:00:24]} Nge7 {[%emt 0:00:32]} 7. O-O {[%emt 0:01:16]} d5 {[%emt 0:00:13]} 8. Bb3 {[%emt 0:00:57]} O-O {[%emt 0:00:09]} 9. Qe1 {[%emt 0:01:25]} Nd4 {[%emt 0:03:23]} 10. Nxd4 {[%emt 0:02:21]} cxd4 {[%emt 0:00:00]} 11. Nb1 {[%emt 0:03:36]} a5 {[%emt 0:02:13]} 12. a4 {[%emt 0:01:05]} dxe4 {[%emt 0:03:21]} 13. Qxe4 {[%emt 0:01:46]} Bd7 {[%emt 0:00:35]} 14. Qe2 {[%emt 0:01:05]} Bc6 {[%emt 0:00:51]} 15. Nd2 {[%emt 0:01:07]} Rc8 {[%emt 0:01:00]} 16. Ne4 {[%emt 0:00:54]} Nf5 {[%emt 0:01:25]} 17. Rf3 {[%emt 0:06:20]} Nd6 {[%emt 0:01:03]} 18. Rh3 {[%emt 0:00:51]} Nxe4 {[%emt 0:04:04]} 19. dxe4 {[%emt 0:00:50]} Qb6 {[%emt 0:03:17]} 20. Kh1 {[%emt 0:02:45]} Rcd8 {[%emt 0:00:57]} 21. Qe1 {[%emt 0:01:53]} d3 {[%emt 0:01:08]} 22. Be3 {[%emt 0:07:33]} Qc7 {[%emt 0:01:36]} 23. cxd3 {[%emt 0:01:11]} Rxd3 {[%emt 0:05:35]} 24. Bc2 {[%emt 0:12:36]} Rd7 {[%emt 0:01:08]} 25. Qh4 {[%emt 0:04:12]} h5 {[%emt 0:02:17]} 26. Rg1 {[%emt 0:05:37]} Qd8 {[%emt 0:00:22]} 27. Qg3 {[%emt 0:04:16]} Qb8 {[%emt 0:08:45]} 28. Bc5 {[%emt 0:09:47]} Rfd8 {[%emt 0:03:00]} 29. Bb6 {[%emt 0:00:31]} Rf8 {[%emt 0:00:23]} 30. Bxa5 {[%emt 0:01:01]} Bh6 {[%emt 0:05:05]} 31. Rf1 {[%emt 0:02:20]} Bg7 {[%emt 0:00:01]} 32. Qg5 {[%emt 0:01:26]} Kh7 {[%emt 0:03:17]} 33. f5 {[%emt 0:00:54]} Bh6 {[%emt 0:05:55]} 34. Qf6 {[%emt 0:01:42]} Bg7 {[%emt 0:00:00]} 35. Qh4 {[%emt 0:14:00]} Qe5 {[%emt 0:01:56]} 36. Bc3 {[%emt 0:00:39]} Qc5 {[%emt 0:01:02]} 37. Qg5 {[%emt 0:00:00]} Bxc3 {[%emt 0:04:32]} 38. bxc3 {[%emt 0:02:22]} Rg8 {[%emt 0:08:39]} 39. fxg6+ {[%emt 0:00:00]} fxg6 {[%emt 0:00:09]} 40. Qxc5 {[%emt 0:00:22]} 1-0